bitfinex-derivatives/quotes_BTCF0:USTF0_20251011
["timestamp","ask_amount","ask_price","bid_price","bid_amount"]
[1760213704762,0.37373,110920.0,110900.0,0.24139]
[1760213705063,0.0900664,110920.0,110900.0,0.60999]
[1760213705263,0.002,110930.0,110920.0,0.03435]
[1760213705470,0.0910543,110930.0,110920.0,0.26435]
[1760213705765,0.4508543,110930.0,110920.0,0.26435]
[1760213705965,0.0900543,110930.0,110920.0,0.62515]
[1760213706172,0.0900543,110930.0,110920.0,1.02515]
[1760213706472,0.0910543,110930.0,110920.0,1.02515]
[1760213706770,0.4742043,110930.0,110920.0,0.65139]
[1760213707171,0.1134043,110930.0,110920.0,0.65139]
[1760213707975,0.1134043,110930.0,110920.0,0.25139]
[1760213708563,0.0920543,110930.0,110920.0,0.25139]
[1760213708764,0.002,110930.0,110920.0,1.63009811]
[1760213709866,0.3608,110970.0,110950.0,0.02919]
[1760213710068,0.3608,110970.0,110960.0,0.39515]
[1760213710069,0.0900218,110970.0,110960.0,0.39515]
[1760213710269,0.0900218,110970.0,110960.0,0.27435]
[1760213711274,0.1113718,110970.0,110960.0,0.26139]
[1760213711673,0.1133718,110970.0,110960.0,0.26139]
[1760213711979,0.1133718,110970.0,110960.0,0.24]
[1760213711980,1.47559123,110970.0,110960.0,0.24]
[1760213712276,1.50185709,110970.0,110960.0,0.1755162]
[1760213713377,0.56270552,110970.0,110960.0,0.1755162]
[1760213713973,0.56270552,110970.0,110960.0,0.1969062]
[1760213714976,0.4891018,110970.0,110960.0,0.1969062]
[1760213715172,0.4891018,110970.0,110960.0,0.1755162]
[1760213715378,0.8891018,110970.0,110960.0,0.1755162]
[1760213715678,0.4891018,110970.0,110960.0,0.1969062]
[1760213716268,0.56175503,110970.0,110960.0,0.1969062]
[1760213716676,0.55975503,110970.0,110960.0,0.1969062]
[1760213717986,0.4871018,110970.0,110960.0,0.1969062]
[1760213718183,0.4851018,110970.0,110960.0,0.1969062]
[1760213718385,0.4861018,110970.0,110960.0,0.1969062]
[1760213718881,0.4851018,110970.0,110960.0,0.1755162]
[1760213719181,0.8861018,110970.0,110960.0,0.1755162]
[1760213719592,1.40098751,110970.0,110960.0,0.1755162]
[1760213720083,1.40198751,110970.0,110960.0,0.1755162]
[1760213720287,1.40198751,110970.0,110960.0,0.1207393]
[1760213720288,1.42624005,110970.0,110960.0,0.1207393]
[1760213720491,0.124318,110950.0,110940.0,0.07]
[1760213720786,0.463768,110950.0,110940.0,0.24139]
[1760213720984,0.485118,110950.0,110940.0,0.24139]
[1760213721976,0.4508343,110960.0,110940.0,1.25412181]
[1760213722180,0.44727627,110970.0,110960.0,0.02139]
[1760213722181,0.53730197,110970.0,110960.0,0.02139]
[1760213722380,0.3608,110970.0,110960.0,0.77923571]
[1760213722586,0.37373,110980.0,110960.0,1.26926291]
[1760213722587,0.4508139,110980.0,110960.0,1.26926291]
[1760213722787,0.3608,110980.0,110970.0,0.03235]
[1760213723088,0.3608,110990.0,110980.0,0.1114037]
[1760213723295,0.4508056,110990.0,110980.0,0.26919]
[1760213723782,0.4721556,110990.0,110980.0,0.26139]
[1760213723986,0.4850856,110990.0,110980.0,0.26139]
[1760213724195,0.4850856,110990.0,110980.0,0.24]
[1760213725188,0.4870856,110990.0,110980.0,0.24]
[1760213725389,0.4890856,110990.0,110980.0,0.24]
[1760213725783,1.42826215,110990.0,110960.0,0.38]
[1760213725983,0.124318,110950.0,110940.0,0.23139]
[1760213726192,0.124318,110950.0,110940.0,0.27139]
[1760213726388,0.124318,110950.0,110940.0,0.25]
[1760213726389,0.485118,110950.0,110940.0,0.25]
[1760213726590,1.40000371,110950.0,110940.0,0.25]
[1760213726786,0.485118,110950.0,110940.0,0.27139]
[1760213727097,0.485118,110950.0,110940.0,0.25]
[1760213727387,0.50944562,110950.0,110940.0,0.25]
[1760213727581,2.0605718,110950.0,110940.0,0.1093307]
[1760213727787,0.1243343,110930.0,110920.0,0.11893068]
[1760213727987,0.72422501,110930.0,110920.0,0.1968656]
[1760213728791,1.44591786,110930.0,110920.0,0.1968656]
[1760213728992,1.84591786,110930.0,110920.0,0.1968656]
[1760213729192,1.27035477,110930.0,110920.0,0.1968656]
[1760213729388,1.84691786,110930.0,110920.0,0.1968656]
[1760213729799,1.85460299,110930.0,110920.0,0.1968656]
[1760213730199,1.85460299,110930.0,110920.0,0.1534328]
[1760213730394,1.85560299,110930.0,110920.0,0.0088433]
[1760213730698,1.85560299,110930.0,110890.0,0.00157875]
[1760213730699,0.1243586,110900.0,110890.0,0.00157875]
[1760213730896,1.44596131,110900.0,110890.0,0.20157875]
[1760213731094,1.42163369,110900.0,110890.0,0.20157875]
[1760213731293,0.8460706,110900.0,110890.0,0.20157875]
[1760213731499,1.42163369,110900.0,110890.0,0.20157875]
[1760213731694,1.44578349,110900.0,110890.0,0.20157875]
[1760213732303,0.8488704,110900.0,110890.0,0.20157875]
[1760213732503,1.42443349,110900.0,110890.0,0.20157875]
[1760213732802,0.8488704,110900.0,110890.0,0.20157875]
[1760213733098,1.42443349,110900.0,110890.0,0.20157875]
[1760213733297,0.8117906,110900.0,110890.0,0.20157875]
[1760213733699,0.721712,110900.0,110890.0,0.61529875]
[1760213733903,0.8117906,110900.0,110890.0,0.61529875]
[1760213734100,0.8137906,110900.0,110890.0,0.61529875]
[1760213734304,0.723712,110900.0,110890.0,0.61529875]
[1760213734803,0.001112,110900.0,110890.0,0.97609875]
[1760213735004,0.4519906,110900.0,110890.0,0.20157875]
[1760213735407,0.4509906,110900.0,110890.0,0.20157875]
[1760213736104,0.47511029,110900.0,110890.0,0.20157875]
[1760213736301,0.47511029,110900.0,110890.0,0.21529875]
[1760213736500,0.47511029,110900.0,110890.0,0.20157875]
[1760213736908,0.47511029,110900.0,110890.0,0.21529875]
[1760213737200,0.4509906,110900.0,110890.0,0.23846875]
[1760213737601,0.000112,110900.0,110890.0,0.63846875]
[1760213737904,0.0901906,110900.0,110890.0,0.63846875]
[1760213738104,0.0911906,110900.0,110890.0,0.99926875]
[1760213738295,0.001112,110900.0,110890.0,0.99926875]
[1760213738496,0.0911906,110900.0,110890.0,0.63846875]
[1760213738702,0.4519906,110900.0,110890.0,0.63846875]
[1760213738902,0.0911906,110900.0,110890.0,0.99926875]
[1760213739308,0.0911906,110900.0,110890.0,0.63846875]
[1760213739508,0.4739806,110900.0,110890.0,0.22474875]
[1760213740410,0.4739806,110900.0,110890.0,0.20157875]
[1760213740411,1.06386369,110900.0,110890.0,0.20157875]
[1760213741106,1.06386369,110900.0,110870.0,7.618e-05]
[1760213741107,0.14846096,110880.0,110870.0,7.618e-05]
[1760213741308,1.44562405,110880.0,110870.0,0.24007618]
[1760213741810,1.86980356,110880.0,110870.0,0.01007618]
[1760213742108,1.84695356,110880.0,110870.0,0.01007618]
[1760213742306,0.12562716,110860.0,110850.0,0.03]
[1760213742613,1.42279025,110860.0,110850.0,0.24]
[1760213743508,1.430607,110860.0,110850.0,0.24]
[1760213743715,1.431607,110860.0,110850.0,0.24]
[1760213744010,0.84822716,110860.0,110850.0,0.24]
[1760213744209,1.42379025,110860.0,110850.0,0.24]
[1760213744909,1.44664025,110860.0,110850.0,0.24]
[1760213746214,1.44564025,110860.0,110850.0,0.24]
[1760213746409,1.42426419,110860.0,110850.0,0.24]
[1760213746610,1.42526419,110860.0,110850.0,0.24]
[1760213747203,1.49666505,110860.0,110850.0,0.24]
[1760213747608,1.48252505,110860.0,110850.0,0.26234]
[1760213748110,1.12172505,110860.0,110850.0,0.26234]
[1760213748606,1.12172505,110860.0,110850.0,1.34112239]
[1760213748607,0.3608,110860.0,110850.0,1.34112239]
[1760213748810,0.3608,110870.0,110860.0,0.03544]
[1760213749010,1.04941783,110880.0,110870.0,0.02234]
[1760213749206,0.1129611,110860.0,110850.0,0.35234]
[1760213749403,0.1129611,110860.0,110850.0,0.27234]
[1760213749607,1.04932419,110860.0,110850.0,0.27234]
[1760213749903,0.4509111,110860.0,110850.0,0.28544]
[1760213750311,0.0901111,110860.0,110850.0,0.28544]
[1760213750811,0.1129611,110860.0,110850.0,0.28544]
[1760213751911,0.0901111,110860.0,110850.0,0.64624]
[1760213752114,0.4509038,110870.0,110850.0,0.64624]
[1760213752304,0.0901033,110870.0,110860.0,0.03544]
[1760213752504,0.0901033,110870.0,110860.0,0.26544]
[1760213753208,0.36090924,110880.0,110870.0,0.03544]
[1760213753408,0.36090924,110880.0,110870.0,0.27544]
[1760213754114,0.09020414,110880.0,110870.0,0.63624]
[1760213754310,0.00010924,110880.0,110870.0,1.126343]
[1760213754513,0.00010924,110880.0,110870.0,1.03624]
[1760213754717,0.09020414,110880.0,110870.0,1.03624]
[1760213754911,0.09120414,110880.0,110870.0,1.03624]
[1760213755410,0.09220414,110880.0,110870.0,1.03624]
[1760213756813,0.00210924,110880.0,110870.0,1.126343]
[1760213757015,0.09220414,110880.0,110870.0,1.70190609]
[1760213757409,0.00210924,110880.0,110870.0,1.70190609]
[1760213758118,0.09220414,110880.0,110870.0,1.70190609]
[1760213759116,0.09220414,110880.0,110870.0,1.126343]
[1760213759712,0.09220414,110880.0,110870.0,1.03624]
[1760213759911,0.09220414,110880.0,110870.0,1.126343]
[1760213760110,0.00210924,110880.0,110870.0,1.126343]
[1760213760314,0.00210924,110880.0,110870.0,1.70190609]
[1760213761216,0.09220414,110880.0,110870.0,0.63624]
[1760213761421,0.00210924,110880.0,110870.0,1.30190609]
[1760213762110,0.00110924,110880.0,110870.0,1.30190609]
[1760213762311,0.00010924,110880.0,110870.0,1.30991133]
[1760213762523,0.09020414,110880.0,110870.0,1.30190609]
[1760213763020,0.11305414,110880.0,110870.0,0.63624]
[1760213763520,0.09020414,110880.0,110870.0,0.63624]
[1760213764017,0.09020414,110880.0,110870.0,0.64423664]
[1760213764423,0.09020414,110880.0,110870.0,1.21979973]
[1760213765120,0.09020414,110880.0,110870.0,0.64423664]
[1760213765318,0.09020414,110880.0,110870.0,1.21180309]
[1760213765511,0.11294414,110880.0,110870.0,0.63624]
[1760213766616,0.70227723,110880.0,110870.0,0.62314]
[1760213766817,0.12671414,110880.0,110870.0,0.62314]
[1760213767018,0.11294414,110880.0,110870.0,0.63705]
[1760213767718,0.09020414,110880.0,110870.0,0.63705]
[1760213768023,0.09020414,110880.0,110870.0,1.21261309]
[1760213769016,0.11294414,110880.0,110870.0,0.63798]
[1760213769217,0.12671414,110880.0,110870.0,0.62407]
[1760213769515,0.48751414,110880.0,110870.0,0.26327]
[1760213770324,0.09020414,110880.0,110870.0,0.27718]
[1760213770626,0.09020414,110880.0,110870.0,0.63798]
[1760213770818,0.09020414,110880.0,110870.0,1.21354309]
[1760213772124,0.09020414,110880.0,110870.0,0.63798]
[1760213772520,0.11294414,110880.0,110870.0,0.63798]
[1760213772724,0.11294414,110880.0,110870.0,0.27718]
[1760213773425,1.06307723,110880.0,110870.0,0.24]
[1760213773624,0.51159835,110880.0,110870.0,0.26327]
[1760213773926,0.51159864,110880.0,110870.0,0.26327]
[1760213774326,0.49782864,110880.0,110870.0,0.27718]
[1760213774921,0.09020414,110880.0,110870.0,0.85274309]
[1760213775124,0.09020414,110880.0,110870.0,1.21354309]
[1760213775320,0.09020414,110880.0,110870.0,1.30364609]
[1760213775617,0.11294414,110880.0,110870.0,0.27718]
[1760213776419,0.12671414,110880.0,110870.0,0.26327]
[1760213776617,0.11294414,110880.0,110870.0,0.27718]
[1760213777425,0.09020414,110880.0,110870.0,0.27718]
[1760213778131,0.09020414,110880.0,110870.0,0.63798]
[1760213778924,0.11294414,110880.0,110870.0,0.63798]
[1760213779528,1.12644343,110880.0,110870.0,0.24]
[1760213779724,1.48724343,110880.0,110870.0,0.24]
[1760213780131,1.49489944,110880.0,110870.0,0.24]
[1760213783231,0.91933635,110880.0,110870.0,0.24]
[1760213783531,1.49489944,110880.0,110870.0,0.24]
[1760213785233,0.1128593,110850.0,110840.0,0.39717]
[1760213785425,0.1266293,110850.0,110840.0,0.25]
[1760213785624,1.06307402,110850.0,110840.0,0.25]
[1760213785826,1.10227402,110850.0,110840.0,0.25]
[1760213786031,1.46307402,110850.0,110840.0,0.25]
[1760213786232,1.53638255,110850.0,110840.0,0.25]
[1760213786435,1.56051783,110850.0,110840.0,0.251]
[1760213787429,0.0901355,110830.0,110820.0,0.34]
[1760213787734,0.0901355,110830.0,110810.0,0.03718]
[1760213787735,0.1128881,110820.0,110810.0,0.03718]
[1760213787933,0.1128881,110820.0,110810.0,0.28718]
[1760213788433,0.47378063,110830.0,110820.0,0.03718]
[1760213788634,0.47378063,110830.0,110820.0,0.25918]
[1760213789134,0.11298063,110830.0,110820.0,0.25918]
[1760213789433,0.11298063,110830.0,110820.0,0.25718]
[1760213789635,0.47378063,110830.0,110820.0,0.25718]
[1760213790034,0.11298063,110830.0,110820.0,0.25718]
[1760213790336,0.47378063,110830.0,110820.0,0.25718]
[1760213790634,0.11298063,110830.0,110820.0,0.25718]
[1760213790835,0.00010063,110830.0,110820.0,0.25718]
[1760213791035,0.00010063,110830.0,110820.0,0.65918]
[1760213791332,0.09023613,110830.0,110820.0,0.65918]
[1760213791731,0.11161219,110830.0,110820.0,0.65918]
[1760213792033,0.00010063,110830.0,110820.0,0.65918]
[1760213792231,0.00010063,110830.0,110820.0,1.01998]
[1760213792832,0.00010063,110830.0,110820.0,1.62590744]
[1760213794031,0.02137606,110850.0,110840.0,0.03562]
[1760213794237,0.11149296,110860.0,110850.0,0.03562]
[1760213794436,0.13376296,110860.0,110850.0,0.26562]
[1760213795135,0.2067566,110860.0,110850.0,0.26562]
[1760213795933,0.2067566,110860.0,110850.0,0.26662]
[1760213796433,0.5675566,110860.0,110850.0,0.26662]
[1760213796633,0.02144974,110860.0,110850.0,1.54320374]
[1760213796827,7.368e-05,110860.0,110850.0,1.54320374]
[1760213797532,7.368e-05,110860.0,110850.0,1.02742]
[1760213797735,0.09018478,110860.0,110850.0,0.62742]
[1760213798439,0.11245478,110860.0,110850.0,0.26662]
[1760213798742,0.09018478,110860.0,110850.0,0.62742]
[1760213799034,0.11245478,110860.0,110850.0,0.62742]
[1760213800243,0.09018478,110860.0,110850.0,0.62742]
[1760213800541,0.11245478,110860.0,110850.0,0.62742]
[1760213800835,0.09018478,110860.0,110850.0,0.62742]
[1760213801041,0.09018478,110860.0,110850.0,1.02742]
[1760213802440,0.09018478,110860.0,110850.0,0.62742]
[1760213803035,0.09018478,110860.0,110850.0,1.02742]
[1760213803240,0.09018478,110860.0,110850.0,1.54320374]
[1760213804344,0.09018478,110860.0,110850.0,1.02742]
[1760213805937,0.11383478,110860.0,110850.0,0.62742]
[1760213806138,0.51383478,110860.0,110850.0,0.62742]
[1760213806337,1.02961852,110860.0,110850.0,0.231]
[1760213806538,1.02961852,110860.0,110850.0,0.181531]
[1760213806539,1.39041852,110860.0,110850.0,0.181531]
[1760213808441,1.39041852,110860.0,110850.0,0.0488521]
[1760213808638,0.89835042,110860.0,110850.0,0.0488521]
[1760213808839,1.39041852,110860.0,110850.0,0.221]
[1760213809144,1.39041852,110860.0,110850.0,0.25785]
[1760213809343,1.39041852,110860.0,110850.0,0.23404]
[1760213809545,1.39041852,110860.0,110850.0,0.221]
[1760213809740,1.41413734,110860.0,110850.0,0.221]
[1760213810942,1.41413734,110860.0,110850.0,0.17358747]
[1760213811142,1.41413734,110860.0,110850.0,0.08096707]
[1760213811342,0.1137774,110840.0,110830.0,0.21]
[1760213811639,0.0901436,110820.0,110810.0,0.65384]
[1760213811842,0.47465866,110820.0,110810.0,0.25685]
[1760213812443,0.47365866,110820.0,110810.0,0.25685]
[1760213812642,0.47265866,110820.0,110810.0,0.25685]
[1760213813342,0.44900866,110820.0,110810.0,0.25685]
[1760213813748,0.52045491,110820.0,110810.0,0.25685]
[1760213814743,0.07151131,110820.0,110810.0,0.65685]
[1760213814943,0.16165491,110820.0,110810.0,0.65685]
[1760213815139,6.506e-05,110820.0,110810.0,0.65685]
[1760213815343,6.506e-05,110820.0,110810.0,1.01765]
[1760213817447,0.0901307,110840.0,110830.0,0.03685]
[1760213817748,0.0901307,110840.0,110830.0,0.26685]
[1760213817947,0.0901307,110840.0,110830.0,1.02765]
[1760213818549,0.0911307,110840.0,110830.0,1.02765]
[1760213818843,0.001,110840.0,110830.0,1.02765]
[1760213819250,0.0911274,110840.0,110830.0,1.02765]
[1760213819750,0.0921274,110840.0,110830.0,1.02765]
[1760213819946,0.002,110840.0,110830.0,1.02765]
[1760213820345,0.0921274,110840.0,110830.0,1.02765]
[1760213821150,0.1157774,110840.0,110830.0,0.62765]
[1760213821353,0.4765774,110840.0,110830.0,0.26685]
[1760213821852,0.1157774,110840.0,110830.0,0.26685]
[1760213822044,0.0921274,110840.0,110830.0,0.62765]
[1760213822655,0.002,110840.0,110830.0,1.02765]
[1760213823248,0.4509078,110870.0,110830.0,1.54343374]
[1760213823443,0.4509078,110870.0,110860.0,0.03648]
[1760213823642,0.3608,110880.0,110860.0,0.26648]
[1760213823847,0.4508986,110880.0,110870.0,0.03648]
[1760213824048,0.4508986,110880.0,110870.0,0.29648]
[1760213824444,0.4744086,110880.0,110870.0,0.29648]
[1760213824648,0.54694781,110880.0,110870.0,0.29648]
[1760213825052,0.94694781,110880.0,110870.0,0.29648]
[1760213825648,1.46273155,110880.0,110870.0,0.26]
[1760213826052,1.48655512,110880.0,110870.0,0.26]
[1760213826250,1.49055512,110880.0,110870.0,0.26]
[1760213826650,1.49055512,110880.0,110870.0,0.2207063]
[1760213827052,1.09055512,110880.0,110870.0,0.2207063]
[1760213827246,0.57477138,110880.0,110870.0,0.2428363]
[1760213827453,0.97477138,110880.0,110870.0,0.2571863]
[1760213827953,0.95094781,110880.0,110870.0,0.2571863]
[1760213828256,0.004,110880.0,110870.0,0.6571863]
[1760213828454,0.004,110880.0,110870.0,1.62387304]
[1760213828751,0.004,110880.0,110870.0,1.13377004]
[1760213828953,0.004,110880.0,110870.0,0.6179863]
[1760213829256,0.002,110880.0,110870.0,0.6179863]
[1760213829448,0.002,110880.0,110870.0,1.13377004]
[1760213829649,0.0900871,110890.0,110880.0,0.03648]
[1760213829957,0.4743926,110900.0,110890.0,0.03648]
[1760213830154,0.4743926,110900.0,110890.0,0.25648]
[1760213830552,0.8743926,110900.0,110890.0,0.23435]
[1760213830746,1.39017634,110900.0,110890.0,0.22]
[1760213831056,1.40300634,110900.0,110890.0,0.22]
[1760213831757,0.4743926,110900.0,110890.0,0.25648]
[1760213832350,0.99017634,110900.0,110890.0,0.23435]
[1760213832556,0.99217634,110900.0,110890.0,0.23435]
[1760213832759,1.39217634,110900.0,110890.0,0.23435]
[1760213833055,0.4528826,110900.0,110890.0,0.25648]
[1760213833552,0.8763926,110900.0,110890.0,0.25648]
[1760213834554,1.39217634,110900.0,110890.0,0.22]
[1760213836861,0.02351,110880.0,110870.0,0.17]
[1760213837057,1.36381864,110880.0,110870.0,0.25]
[1760213837254,1.35098864,110880.0,110870.0,0.28648]
[1760213837555,1.35098864,110880.0,110870.0,0.25]
[1760213838058,0.8352049,110880.0,110870.0,0.28648]
[1760213838855,0.4508949,110880.0,110870.0,0.28648]
[1760213839061,0.0900949,110880.0,110870.0,0.28648]
[1760213839353,0.4518949,110880.0,110870.0,0.28648]
[1760213839559,0.4754049,110880.0,110870.0,0.28648]
[1760213839755,0.4744049,110880.0,110870.0,0.28648]
[1760213840460,0.1136049,110880.0,110870.0,0.28648]
[1760213840660,0.4744049,110880.0,110870.0,0.28648]
[1760213841358,0.99018864,110880.0,110870.0,0.26435]
[1760213841759,0.4744049,110880.0,110870.0,0.25]
[1760213841957,0.99018864,110880.0,110870.0,0.25]
[1760213842358,1.39018864,110880.0,110870.0,0.25]
[1760213842659,2.51253289,110880.0,110870.0,0.144568]
[1760213842860,2.11353289,110880.0,110870.0,0.144568]
[1760213843257,1.37682613,110880.0,110870.0,0.144568]
[1760213846265,0.86104239,110880.0,110870.0,0.181048]
[1760213846455,0.4764049,110880.0,110870.0,0.181048]
[1760213846767,0.4764049,110880.0,110870.0,0.144568]
[1760213847067,1.39218864,110880.0,110870.0,0.144568]
[1760213847558,1.81165442,110880.0,110870.0,0.144568]
[1760213847760,1.83552791,110880.0,110870.0,0.144568]
[1760213847964,0.1208211,110860.0,110850.0,0.16]
[1760213848162,0.1136374,110840.0,110830.0,0.66728]
[1760213848359,0.1136374,110840.0,110830.0,0.64728]
[1760213849560,0.0901274,110840.0,110830.0,1.04728]
[1760213849961,0.072977,110850.0,110840.0,0.03648]
[1760213849962,0.1631006,110850.0,110840.0,0.03648]
[1760213850168,0.1136336,110850.0,110840.0,0.26648]
[1760213850669,0.69008312,110850.0,110840.0,0.26648]
[1760213850865,1.05088312,110850.0,110840.0,0.26648]
[1760213851071,0.4744336,110850.0,110840.0,0.26648]
[1760213851468,0.0901236,110850.0,110840.0,1.24292952]
[1760213851773,0.0901236,110850.0,110840.0,0.66648]
[1760213852172,0.93724952,110860.0,110850.0,0.03786]
[1760213852173,0.4509187,110860.0,110850.0,0.03786]
[1760213852476,0.4509111,110860.0,110850.0,0.26786]
[1760213852772,0.4733811,110860.0,110850.0,0.26786]
[1760213853076,1.04983062,110860.0,110850.0,0.23]
[1760213854069,1.05083062,110860.0,110850.0,0.25365]
[1760213854276,1.05083062,110860.0,110850.0,0.26786]
[1760213854471,1.05083062,110860.0,110850.0,0.23]
[1760213854870,1.05083062,110860.0,110850.0,0.26786]
[1760213855171,0.4743811,110860.0,110850.0,0.26786]
[1760213855976,0.4743811,110860.0,110850.0,0.66786]
[1760213856280,0.4733811,110860.0,110850.0,0.66786]
[1760213856781,0.1125811,110860.0,110850.0,0.66786]
[1760213857278,0.4733811,110860.0,110850.0,0.66786]
[1760213857983,0.4733811,110860.0,110850.0,0.26786]
[1760213858180,1.04983062,110860.0,110850.0,0.26786]
[1760213858481,0.1125811,110860.0,110850.0,0.26786]
[1760213858977,0.0901111,110860.0,110850.0,0.66786]
[1760213859478,0.001,110860.0,110850.0,1.1187793]
[1760213859677,0.001,110860.0,110850.0,1.69522882]
[1760213860076,1.01081265,110890.0,110880.0,0.01421]
[1760213860077,0.43436313,110890.0,110880.0,0.01421]
[1760213860276,0.8341567,110890.0,110880.0,0.28786]
[1760213861578,0.8116867,110890.0,110880.0,0.68786]
[1760213861984,0.8346167,110890.0,110880.0,0.68786]
[1760213862388,0.8346167,110890.0,110880.0,0.28786]
[1760213862579,1.88951017,110890.0,110880.0,0.25]
[1760213862776,1.51337925,110890.0,110880.0,0.2234802]
[1760213862983,1.51337925,110890.0,110880.0,0.11463254]
[1760213863179,1.50752925,110890.0,110880.0,0.11463254]
[1760213865180,1.90752925,110890.0,110880.0,0.08136794]
[1760213865383,1.90752925,110890.0,110880.0,4e-08]
[1760213865784,0.0901111,110860.0,110850.0,0.03722]
[1760213866086,0.0901111,110860.0,110850.0,0.28722]
[1760213866287,0.4509072,110870.0,110860.0,0.03597]
[1760213866587,0.4738294,110880.0,110870.0,0.03597]
[1760213866790,0.4738294,110880.0,110870.0,0.29597]
[1760213867477,0.4508994,110880.0,110870.0,0.69597]
[1760213867679,0.4508994,110880.0,110870.0,1.27241952]
[1760213867680,0.4508949,110880.0,110870.0,1.27241952]
[1760213867888,0.52148515,110890.0,110880.0,0.03597]
[1760213868093,0.4508912,110890.0,110880.0,0.26597]
[1760213868285,0.0900912,110890.0,110880.0,0.26597]
[1760213868483,0.0900912,110890.0,110880.0,1.24241952]
[1760213868880,0.4508827,110900.0,110890.0,0.01296]
[1760213869190,0.4508827,110900.0,110890.0,0.30597]
[1760213869489,1.05026222,110900.0,110890.0,0.30597]
[1760213869989,1.12386916,110900.0,110890.0,0.1498566]
[1760213870179,1.53106916,110900.0,110890.0,0.1498566]
[1760213870384,1.53206916,110900.0,110890.0,0.1498566]
[1760213870591,1.55594201,110900.0,110890.0,0.1498566]
[1760213870988,1.55694201,110900.0,110890.0,0.1498566]
[1760213872081,1.14974201,110900.0,110890.0,0.1498566]
[1760213872790,1.15694201,110900.0,110890.0,0.1498566]
[1760213874090,0.57329249,110900.0,110890.0,0.1858266]
[1760213874387,1.12586916,110900.0,110890.0,0.1858266]
[1760213874587,1.12586916,110900.0,110890.0,0.1498566]
[1760213875291,1.12586916,110900.0,110890.0,0.1858266]
[1760213875789,1.12586916,110900.0,110890.0,0.1728666]
[1760213875991,1.12586916,110900.0,110890.0,0.1498566]
[1760213876488,1.13306916,110900.0,110890.0,0.1498566]
[1760213879189,0.54941964,110900.0,110890.0,0.1858266]
[1760213879588,1.12586916,110900.0,110890.0,0.1858266]
[1760213880394,1.13306916,110900.0,110890.0,0.1498566]
[1760213880792,1.13306916,110900.0,110890.0,0.1728666]
[1760213880993,1.12586916,110900.0,110890.0,0.1858266]
[1760213881389,0.54941964,110900.0,110890.0,0.1858266]
[1760213881591,1.12586916,110900.0,110890.0,0.1858266]
[1760213881897,1.13934916,110900.0,110890.0,0.1498566]
[1760213882285,1.56295042,110900.0,110890.0,0.1498566]
[1760213883094,0.1209249,110880.0,110870.0,0.05]
[1760213883292,0.114033,110870.0,110860.0,0.03709]
[1760213883493,1.05128252,110870.0,110860.0,0.26709]
[1760213884597,0.474833,110870.0,110860.0,0.26709]
[1760213884892,0.482033,110870.0,110860.0,0.25413]
[1760213885099,1.05848252,110870.0,110860.0,0.23]
[1760213886192,1.45848252,110870.0,110860.0,0.0728533]
[1760213886392,1.4821188,110870.0,110860.0,0.0262431]
[1760213886690,1.4821188,110870.0,110810.0,0.39843]
[1760213886691,0.1140737,110820.0,110810.0,0.39843]
[1760213886893,0.0901437,110820.0,110810.0,0.61843]
[1760213887096,0.0901437,110820.0,110810.0,0.25763]
[1760213887296,0.1140737,110820.0,110810.0,0.25763]
[1760213887494,0.0901437,110820.0,110810.0,0.25763]
[1760213888198,0.1140737,110820.0,110810.0,0.25763]
[1760213888995,0.1140737,110820.0,110810.0,0.25963]
[1760213889395,0.0901437,110820.0,110810.0,0.25963]
[1760213889590,0.0901437,110820.0,110810.0,1.02043]
[1760213890000,0.0901437,110820.0,110810.0,1.59687952]
[1760213890895,0.0901437,110820.0,110810.0,1.02043]
[1760213891195,0.0901437,110820.0,110810.0,0.62043]
[1760213891397,1.05132322,110820.0,110810.0,0.25963]
[1760213891592,0.4748737,110820.0,110810.0,0.25963]
[1760213891793,1.06379322,110820.0,110810.0,0.222]
[1760213894604,1.05132322,110820.0,110810.0,0.25963]
[1760213895099,0.4748737,110820.0,110810.0,0.25963]
[1760213895490,0.4748737,110820.0,110810.0,0.25863]
[1760213895892,1.05132322,110820.0,110810.0,0.25863]
[1760213896197,1.05132322,110820.0,110810.0,0.25763]
[1760213896396,1.05132322,110820.0,110810.0,0.25863]
[1760213896599,1.06379322,110820.0,110810.0,0.221]
[1760213897697,1.46379322,110820.0,110810.0,0.05486805]
[1760213898097,0.1275618,110810.0,110800.0,0.00108557]
[1760213898294,1.06481132,110810.0,110800.0,0.27108557]
[1760213899002,1.06481132,110810.0,110800.0,0.00108557]
[1760213899196,1.46481132,110810.0,110800.0,0.03254267]
[1760213899503,1.56472981,110810.0,110800.0,0.191]
[1760213899701,1.46481132,110810.0,110800.0,0.191]
[1760213900203,1.46491938,110810.0,110800.0,0.191]
[1760213901303,1.46491938,110810.0,110780.0,0.29]
[1760213901304,0.1140981,110790.0,110780.0,0.29]
[1760213901498,0.1140981,110790.0,110770.0,0.03763]
[1760213901499,0.1141062,110780.0,110770.0,0.03763]
[1760213901804,0.1141915,110780.0,110770.0,0.26763]
[1760213902106,8.53e-05,110780.0,110770.0,1.24407952]
[1760213902403,0.0902615,110780.0,110770.0,0.66763]
[1760213902904,0.1141915,110780.0,110770.0,0.66763]
[1760213903102,0.1141915,110780.0,110770.0,0.66863]
[1760213903406,0.0902615,110780.0,110770.0,0.66863]
[1760213905901,0.69784102,110780.0,110770.0,0.231]
[1760213906095,0.1141915,110780.0,110770.0,0.26863]
[1760213906301,0.0902615,110780.0,110770.0,0.26863]
[1760213906508,0.69784102,110780.0,110770.0,0.231]
[1760213906701,1.05144102,110780.0,110770.0,0.25513]
[1760213906904,0.4821915,110780.0,110770.0,0.25513]
[1760213907203,1.05144102,110780.0,110770.0,0.26863]
[1760213907405,1.45864102,110780.0,110770.0,0.0703193]
[1760213907596,0.1141306,110750.0,110740.0,0.03772007]
[1760213907797,0.63068571,110750.0,110740.0,0.2479598]
[1760213907998,8.396e-05,110750.0,110740.0,0.2479598]
[1760213908204,8.396e-05,110750.0,110740.0,0.6087598]
[1760213908398,8.396e-05,110750.0,110740.0,1.0087598]
[1760213908701,8.396e-05,110750.0,110740.0,1.6236345]
[1760213909101,0.1141147,110770.0,110760.0,0.0135]
[1760213909306,0.1275947,110770.0,110760.0,0.28413]
[1760213910504,1.00497137,110770.0,110760.0,0.26]
[1760213911406,1.00497137,110770.0,110760.0,0.261]
[1760213912308,0.48850022,110770.0,110760.0,0.28513]
[1760213913306,0.47502022,110770.0,110760.0,0.29967]